bitfinex/quotes_BTCUSD_20220405
["timestamp","ask_amount","ask_price","bid_price","bid_amount"]
[1649129700187,0.75367409,46697.0,46696.0,0.74124153]
[1649129700283,0.75367409,46697.0,46696.0,0.64132059]
[1649129700534,0.75367409,46697.0,46696.0,0.94132059]
[1649129700733,0.75367409,46697.0,46696.0,0.64132059]
[1649129701334,0.75367409,46697.0,46696.0,0.94132059]
[1649129701939,0.75367409,46697.0,46696.0,0.64132059]
[1649129702691,1.05367409,46697.0,46696.0,0.64132059]
[1649129702789,1.05367409,46697.0,46696.0,0.517559]
[1649129703036,0.75367409,46697.0,46696.0,0.517559]
[1649129703136,0.75367409,46697.0,46696.0,0.567559]
[1649129707639,1.05367409,46697.0,46696.0,0.567559]
[1649129707741,1.05367409,46697.0,46696.0,0.257024]
[1649129707838,1.05367409,46697.0,46696.0,0.103512]
[1649129707938,0.15624302,46695.0,46694.0,0.053516]
[1649129708389,0.15624302,46695.0,46694.0,0.0125277]
[1649129708487,0.43081861,46695.0,46694.0,0.0125277]
[1649129708589,0.15624302,46695.0,46694.0,0.0125277]
[1649129710488,0.15624302,46695.0,46694.0,0.1625277]
[1649129711242,0.15624302,46695.0,46694.0,0.0125277]
[1649129711741,0.15624302,46695.0,46694.0,0.1625277]
[1649129711889,0.15624302,46695.0,46694.0,0.2125277]
[1649129715601,0.15624302,46695.0,46694.0,0.42007302]
[1649129715805,0.15624302,46695.0,46694.0,0.77351861]
[1649129715902,0.15624302,46695.0,46694.0,0.60877329]
[1649129716007,0.15624302,46695.0,46694.0,0.99803839]
[1649129716101,0.75388118,46697.0,46695.0,3.55]
[1649129716303,0.75388118,46697.0,46696.0,0.01082967]
[1649129716402,0.75388118,46697.0,46696.0,0.15295186]
[1649129716608,0.12938218,46697.0,46696.0,0.20295186]
[1649129717004,0.12938218,46697.0,46696.0,0.42803838]
[1649129717005,0.12917509,46697.0,46696.0,0.42803838]
[1649129717105,0.12917509,46697.0,46696.0,0.70748861]
[1649129717207,0.000291,46699.0,46697.0,2.2]
[1649129717305,0.00049809,46699.0,46698.0,0.453506]
[1649129717434,0.00049809,46699.0,46698.0,0.50713567]
[1649129717534,0.00049809,46699.0,46698.0,0.15]
[1649129717634,0.00049809,46699.0,46698.0,0.15062067]
[1649129717839,0.00049809,46699.0,46698.0,0.30062067]
[1649129717935,0.00049809,46699.0,46698.0,0.42902978]
[1649129718237,0.000291,46699.0,46698.0,0.42902978]
[1649129718788,0.000291,46699.0,46698.0,0.69764882]
[1649129718937,0.000291,46699.0,46698.0,0.75115482]
[1649129719239,0.000291,46699.0,46698.0,0.53253578]
[1649129719586,0.0001,46700.0,46699.0,3.55]
[1649129719688,0.0001,46700.0,46699.0,3.753321]
[1649129719788,0.0001,46700.0,46699.0,3.92763494]
[1649129719886,0.0001,46700.0,46699.0,3.91415067]
[1649129719991,0.0001,46700.0,46699.0,0.36415067]
[1649129720086,0.0001,46700.0,46699.0,0.66415067]
[1649129722492,0.0001,46700.0,46699.0,0.36415067]
[1649129722592,0.0001,46700.0,46699.0,0.26415067]
[1649129723998,0.0001,46700.0,46699.0,0.56415067]
[1649129724299,0.0001,46700.0,46699.0,0.66415067]
[1649129724895,0.0001,46700.0,46699.0,0.36415067]
[1649129726489,0.0001,46700.0,46699.0,0.26415067]
[1649129726601,0.0001,46700.0,46699.0,0.36415067]
[1649129727691,0.0001,46700.0,46699.0,0.26415067]
[1649129727792,0.0001,46700.0,46699.0,0.36286988]
[1649129727891,0.0001,46700.0,46699.0,0.46286988]
[1649129730442,0.0001,46700.0,46699.0,0.76286988]
[1649129734618,0.0001,46700.0,46699.0,0.46286988]
[1649129735020,0.0001,46700.0,46699.0,0.36415067]
[1649129735119,0.0001,46700.0,46699.0,0.26415067]
[1649129736286,0.0001,46700.0,46699.0,0.36281119]
[1649129736386,0.0001,46700.0,46699.0,0.46281119]
[1649129736586,0.0001,46700.0,46699.0,0.36415067]
[1649129736888,0.85547757,46700.0,46699.0,0.36415067]
[1649129737187,0.85547757,46700.0,46699.0,0.46281229]
[1649129737437,0.85547757,46700.0,46699.0,0.66415067]
[1649129737638,0.85547757,46700.0,46699.0,0.76281229]
[1649129738439,0.85547757,46700.0,46699.0,0.46281229]
[1649129739494,0.85547757,46700.0,46699.0,0.36415067]
[1649129739591,0.85547757,46700.0,46699.0,0.26415067]
[1649129739692,0.85547757,46700.0,46699.0,0.46286825]
[1649129739902,0.85547757,46700.0,46699.0,0.36415067]
[1649129739903,0.85540708,46700.0,46699.0,0.36415067]
[1649129740104,0.85540708,46700.0,46699.0,0.46286825]
[1649129740302,0.85540708,46700.0,46699.0,0.36415067]
[1649129740706,0.85540708,46700.0,46699.0,0.26415067]
[1649129741207,0.85540708,46700.0,46699.0,0.36286934]
[1649129741306,0.85540708,46700.0,46699.0,0.46286934]
[1649129741606,0.85540708,46700.0,46699.0,0.36415067]
[1649129741807,0.85540708,46700.0,46699.0,0.46287285]
[1649129742007,0.85540708,46700.0,46699.0,0.36415067]
[1649129742458,0.85540708,46700.0,46699.0,0.26415067]
[1649129742560,0.85540708,46700.0,46699.0,0.36415067]
[1649129743786,0.85540708,46700.0,46699.0,0.26415067]
[1649129743883,0.85540708,46700.0,46699.0,0.36415067]
[1649129744185,0.85540708,46700.0,46699.0,0.46265892]
[1649129744433,0.85540708,46700.0,46699.0,0.36415067]
[1649129744533,0.85540708,46700.0,46699.0,0.46265892]
[1649129744734,0.85540708,46700.0,46699.0,0.36415067]
[1649129744936,0.85540708,46700.0,46699.0,0.46265903]
[1649129745035,0.85540708,46700.0,46699.0,0.36265903]
[1649129745136,0.85540708,46700.0,46699.0,0.46265903]
[1649129745238,0.85540708,46700.0,46699.0,0.36415067]
[1649129746338,0.85540708,46700.0,46699.0,0.26415067]
[1649129746488,0.85540708,46700.0,46699.0,0.36415067]
[1649129747488,0.85540708,46700.0,46699.0,0.26415067]
[1649129748338,0.85540708,46700.0,46699.0,0.253321]
[1649129749647,0.85540708,46700.0,46699.0,0.199321]
[1649129749648,0.56307743,46700.0,46699.0,0.199321]
[1649129749843,0.56307743,46700.0,46699.0,0.249321]
[1649129750498,0.56307743,46700.0,46699.0,0.399321]
[1649129750599,0.56307743,46700.0,46699.0,0.499321]
[1649129750896,0.56307743,46700.0,46699.0,0.349321]
[1649129750997,0.56307743,46700.0,46699.0,0.499321]
[1649129751243,0.56307743,46700.0,46699.0,0.15]
[1649129751446,0.56307743,46700.0,46699.0,0.1]
[1649129751645,0.56307743,46700.0,46698.0,0.107022]
[1649129752246,0.78814517,46700.0,46698.0,0.107022]
[1649129752548,0.78814517,46700.0,46698.0,0.053506]
[1649129753400,0.56307743,46700.0,46698.0,0.053506]
[1649129759595,0.56307743,46700.0,46698.0,0.107021]
[1649129759696,0.56307743,46700.0,46698.0,0.13798498]
[1649129760145,0.56307743,46700.0,46698.0,0.12941912]
[1649129760345,0.55451194,46700.0,46698.0,0.12941912]
[1649129764643,0.55451194,46700.0,46699.0,0.15]
[1649129766645,0.55451194,46700.0,46698.0,0.12941912]
[1649129768197,0.55451194,46700.0,46699.0,0.0428]
[1649129783599,0.55442875,46700.0,46699.0,0.0428]
[1649129784999,0.55442875,46700.0,46698.0,0.09845514]
[1649129787505,0.54942875,46700.0,46698.0,0.09845514]
[1649129799050,0.54942875,46700.0,46699.0,0.74011058]
[1649129799250,0.54942875,46700.0,46699.0,0.85094071]
[1649129799349,0.54942875,46700.0,46699.0,0.94938234]
[1649129799651,0.54942875,46700.0,46699.0,1.27355054]
[1649129799893,0.54942875,46700.0,46699.0,0.87623996]
[1649129800295,0.54942875,46700.0,46699.0,0.57623996]
[1649129800597,0.54942875,46700.0,46699.0,0.40207176]
[1649129800696,0.54942875,46700.0,46699.0,0.30363013]
[1649129801700,0.54942875,46700.0,46699.0,0.1928]
[1649129801904,0.54942875,46700.0,46699.0,0.2]
[1649129802005,0.54942875,46700.0,46699.0,0.05]
[1649129802204,0.54942875,46700.0,46698.0,0.09845514]
[1649129802602,0.54942875,46700.0,46698.0,0.04494914]
[1649129804156,0.54942875,46700.0,46698.0,0.09494914]
[1649129806259,0.54942875,46700.0,46698.0,0.04494914]
[1649129808042,0.54931687,46700.0,46698.0,0.04494914]
[1649129808799,0.54931687,46700.0,46697.0,0.214074]
[1649129808902,0.54931687,46700.0,46694.0,0.05]
[1649129808903,0.29694598,46699.0,46694.0,0.05]
[1649129809198,0.1,46693.0,46687.0,0.01071]
[1649129809301,0.1,46693.0,46686.0,0.0999]
[1649129809802,0.1,46693.0,46688.0,0.5]
[1649129809916,0.27774423,46692.0,46688.0,0.5]
[1649129810001,0.24054366,46690.0,46688.0,0.553538]
[1649129810104,0.27794984,46692.0,46689.0,0.053535]
[1649129810899,0.27774423,46692.0,46689.0,0.053535]
[1649129811144,0.10061994,46693.0,46689.0,0.053535]
[1649129811242,0.10061994,46693.0,46689.0,0.160597]
[1649129811743,0.0972926,46693.0,46689.0,0.160597]
[1649129812094,0.3035297,46692.0,46689.0,0.160597]
[1649129812500,0.09729259,46693.0,46689.0,0.160597]
[1649129812799,0.09729259,46693.0,46689.0,0.107062]
[1649129812898,0.09729259,46693.0,46690.0,0.107059]
[1649129813301,0.09667266,46693.0,46690.0,0.107059]
[1649129813501,0.22327581,46691.0,46690.0,0.107059]
[1649129816993,0.09667266,46693.0,46690.0,0.107059]
[1649129817196,0.09727034,46693.0,46690.0,0.107059]
[1649129817996,0.29673239,46692.0,46690.0,0.107059]
[1649129818394,0.29673239,46692.0,46690.0,0.214122]
[1649129819195,0.09667266,46693.0,46691.0,0.103529]
[1649129819595,0.09725814,46693.0,46691.0,0.103529]
[1649129820149,0.09725814,46693.0,46691.0,0.09496351]
[1649129820496,0.09667266,46693.0,46691.0,0.09496351]
[1649129822148,0.08767266,46693.0,46691.0,0.09496351]
[1649129832097,0.08767266,46693.0,46691.0,0.04143451]
[1649129833049,0.08767266,46693.0,46690.0,0.214122]
[1649129834398,0.08767266,46693.0,46689.0,0.053529]
[1649129834600,0.08767266,46693.0,46686.0,0.5]
[1649129834699,0.08767266,46693.0,46686.0,0.553542]
[1649129835200,0.00056007,46692.0,46686.0,0.553542]
[1649129835705,0.00056007,46692.0,46686.0,0.053542]
[1649129836107,0.08767266,46693.0,46686.0,0.053542]
[1649129836409,0.00056008,46691.0,46686.0,0.053542]
[1649129837310,0.08767266,46693.0,46686.0,0.053542]
[1649129837551,0.00056179,46691.0,46686.0,0.053542]
[1649129838551,0.08767266,46693.0,46686.0,0.053542]
[1649129838751,0.00056179,46691.0,46686.0,0.053542]
[1649129839156,0.00056179,46691.0,46686.0,0.103542]
[1649129839803,0.08767266,46693.0,46686.0,0.103542]
[1649129840005,0.00056179,46691.0,46686.0,0.103542]
[1649129840107,0.00056179,46691.0,46686.0,0.053542]
[1649129840307,0.00056179,46691.0,46683.0,0.01071]
[1649129840406,0.00056179,46691.0,46682.0,0.107079]
[1649129840960,0.29707411,46692.0,46682.0,0.107079]
[1649129841200,0.00056163,46689.0,46682.0,0.107079]
[1649129841301,0.27684338,46683.0,46682.0,0.107079]
[1649129842351,0.08767266,46693.0,46682.0,0.107079]
[1649129842500,0.00056166,46685.0,46682.0,0.107079]
[1649129843350,0.31053346,46686.0,46682.0,0.107079]
[1649129843650,0.31109512,46686.0,46683.0,0.053537]
[1649129844555,0.31053346,46686.0,46682.0,0.107079]
[1649129844910,0.29720335,46685.0,46679.0,0.60709]
[1649129845102,0.29720335,46685.0,46679.0,0.5]
[1649129845500,0.42646912,46681.0,46679.0,0.5]
[1649129845606,0.3,46680.0,46679.0,0.5]
[1649129845704,0.3,46680.0,46679.0,0.03007953]
[1649129845805,0.3,46680.0,46672.0,0.0999]
[1649129846052,0.3,46680.0,46668.0,1.086759]
[1649129846603,0.3,46680.0,46671.0,0.107108]
[1649129847259,0.00059999,46678.0,46671.0,0.107108]
[1649129848167,0.64364784,46680.0,46668.0,0.107115]
[1649129848259,0.01071,46679.0,46668.0,0.107115]
[1649129848359,0.01071,46679.0,46669.0,0.05]
[1649129848460,0.00061963,46677.0,46668.0,0.157115]
[1649129849148,0.25155234,46670.0,46668.0,0.157115]
[1649129851204,0.25155234,46670.0,46668.0,0.107115]
[1649129852602,0.25155234,46670.0,46669.0,0.053562]
[1649129858202,0.55155234,46670.0,46669.0,0.053562]
[1649129858305,0.25155234,46670.0,46669.0,0.053562]
[1649129860244,0.25155234,46670.0,46668.0,0.107115]
[1649129863556,0.25155234,46670.0,46667.0,0.34656186]
[1649129863797,0.25155234,46670.0,46667.0,0.346]
[1649129864097,0.25155234,46670.0,46667.0,0.399561]
[1649129867052,0.01071,46676.0,46667.0,0.399561]
[1649129867154,0.00056125,46677.0,46669.0,0.053559]
[1649129867396,0.5,46679.0,46670.0,0.053559]
[1649129867497,0.01071,46678.0,46670.0,0.053559]
[1649129867698,0.00056127,46677.0,46670.0,0.053559]
[1649129867798,0.01071,46676.0,46670.0,0.053559]
[1649129868299,0.27976205,46674.0,46670.0,0.053559]
[1649129868500,0.3,46673.0,46670.0,0.053559]
[1649129868607,0.27976205,46674.0,46670.0,0.053559]
[1649129869304,0.3,46673.0,46670.0,0.053559]
[1649129869404,0.27976205,46674.0,46670.0,0.053559]
[1649129869658,0.3,46673.0,46670.0,0.053559]
[1649129869756,0.27976205,46674.0,46670.0,0.053559]
[1649129869955,0.31071,46678.0,46670.0,0.053559]
[1649129870055,0.00056131,46677.0,46670.0,0.053559]
[1649129870157,0.01071,46676.0,46670.0,0.053559]
[1649129870258,0.01071,46676.0,46671.0,0.053553]
[1649129871008,0.01071,46677.0,46671.0,0.053553]
[1649129871150,0.57788097,46678.0,46671.0,0.053553]
[1649129871297,0.01127132,46677.0,46671.0,0.053553]
[1649129872049,0.01127132,46677.0,46670.0,0.160664]
[1649129872148,0.01071,46677.0,46670.0,0.160664]
[1649129872347,0.57788097,46678.0,46670.0,0.160664]
[1649129872449,0.01071,46677.0,46670.0,0.160664]
[1649129872597,0.01127132,46677.0,46670.0,0.160664]
[1649129872696,0.00056132,46677.0,46670.0,0.160664]
[1649129873448,0.57788097,46678.0,46670.0,0.160664]
[1649129873550,0.01071,46677.0,46670.0,0.160664]
[1649129873655,0.01127131,46677.0,46670.0,0.160664]
[1649129873801,0.00056131,46677.0,46670.0,0.160664]
[1649129874655,0.57788097,46678.0,46670.0,0.160664]
[1649129874753,0.01071,46677.0,46670.0,0.160664]
[1649129874911,0.01127131,46677.0,46670.0,0.160664]
[1649129875002,0.00056131,46677.0,46670.0,0.160664]
[1649129875604,0.00056131,46677.0,46670.0,0.053559]
[1649129875805,0.57788097,46678.0,46670.0,0.053559]
[1649129876005,0.00056131,46677.0,46670.0,0.053559]
[1649129876104,0.01127131,46677.0,46670.0,0.053559]
[1649129876508,0.00056131,46677.0,46670.0,0.053559]
[1649129877009,0.57788097,46678.0,46670.0,0.053559]
[1649129877209,0.00056131,46677.0,46670.0,0.053559]
[1649129877310,0.01127131,46677.0,46670.0,0.053559]
[1649129877410,0.00056131,46677.0,46670.0,0.053559]
[1649129878261,0.57788097,46678.0,46670.0,0.053559]
[1649129878363,0.01071,46677.0,46670.0,0.053559]
[1649129878513,0.01127131,46677.0,46670.0,0.053559]
[1649129878752,0.00056131,46677.0,46670.0,0.053559]
[1649129879451,0.57788097,46678.0,46670.0,0.053559]
[1649129879604,0.57788097,46678.0,46668.0,0.107113]
[1649129879700,0.01127131,46677.0,46667.0,0.34656144]
[1649129879799,0.00056131,46677.0,46667.0,0.34656144]
[1649129880101,0.322035,46676.0,46667.0,0.34656144]
[1649129880202,0.00056131,46677.0,46664.0,0.107125]
[1649129880203,0.12345178,46666.0,46664.0,0.107125]
[1649129880301,0.12345178,46666.0,46661.0,0.03224602]
[1649129880302,0.3,46665.0,46661.0,0.03224602]
[1649129880506,0.30816619,46664.0,46661.0,0.03224602]
[1649129880607,0.30816619,46664.0,46661.0,0.00224602]
[1649129880703,0.30816619,46664.0,46657.0,0.01072]
[1649129880855,0.30816619,46664.0,46661.0,0.02332526]
[1649129881055,0.29593937,46663.0,46653.0,1.57058645]
[1649129881154,0.3,46662.0,46653.0,0.48382745]
[1649129881662,0.3,46662.0,46654.0,0.053579]
[1649129882557,0.3,46662.0,46653.0,0.48382745]
[1649129882558,0.322035,46661.0,46653.0,0.48382745]
[1649129882658,0.35860721,46660.0,46653.0,0.48382745]
[1649129882755,1.275835,46659.0,46653.0,0.48382745]
[1649129882852,0.01072,46658.0,46653.0,0.48382745]
[1649129882955,0.322035,46657.0,46653.0,0.48382745]
[1649129883054,0.322035,46655.0,46653.0,0.48382745]
[1649129883153,0.622035,46654.0,46653.0,0.48382745]
[1649129883553,0.622035,46654.0,46651.0,0.01]
[1649129883554,0.60113656,46654.0,46651.0,0.01]
[1649129885209,0.60113656,46654.0,46653.0,0.00183343]
[1649129886399,0.92317156,46654.0,46653.0,0.00183343]
[1649129886497,0.60113656,46654.0,46653.0,0.00183343]
[1649129886597,0.92317156,46654.0,46653.0,0.00183343]
[1649129886697,0.60113656,46654.0,46653.0,0.00183343]
[1649129887302,0.60113656,46654.0,46651.0,0.01246715]
[1649129887854,0.60113656,46654.0,46651.0,0.01183343]
[1649129889207,0.60113656,46654.0,46653.0,0.00218911]
[1649129889556,0.30113656,46654.0,46653.0,0.00218911]
[1649129889658,0.92317156,46654.0,46653.0,0.00218911]
[1649129890056,0.62317156,46654.0,46653.0,0.00218911]
[1649129890157,0.92317156,46654.0,46653.0,0.00218911]
[1649129890658,1.52797381,46654.0,46653.0,0.00218911]
[1649129890806,1.20593881,46654.0,46653.0,0.00218911]
[1649129891157,0.90593881,46654.0,46653.0,0.00218911]
[1649129891360,0.90593881,46654.0,46651.0,0.01]
[1649129891361,0.90593881,46654.0,46651.0,0.01218911]
[1649129891456,0.3,46653.0,46651.0,0.01218911]
[1649129891556,0.90593881,46654.0,46651.0,0.01218911]
[1649129891855,0.3,46653.0,46651.0,0.01218911]
[1649129892859,0.322035,46652.0,46651.0,0.01218911]
[1649129892959,0.622035,46652.0,46651.0,0.01218911]
[1649129893674,0.3,46652.0,46651.0,0.01218911]
[1649129893775,0.622035,46652.0,46651.0,0.01218911]
[1649129893929,0.622035,46652.0,46651.0,0.01]
[1649129894723,1.05410058,46652.0,46651.0,0.01]
[1649129895374,0.664835,46652.0,46651.0,0.01]
[1649129895876,0.664835,46652.0,46651.0,0.01218839]
[1649129896277,0.364835,46652.0,46651.0,0.01218839]
[1649129896776,0.0428,46652.0,46651.0,0.01218839]
[1649129896876,0.364835,46652.0,46651.0,0.01218839]
[1649129896978,0.0428,46652.0,46651.0,0.01218839]
[1649129897075,0.364835,46652.0,46651.0,0.01218839]
[1649129897858,0.0428,46652.0,46651.0,0.01218839]
[1649129898260,0.364835,46652.0,46651.0,0.01218839]
[1649129898860,0.0428,46652.0,46651.0,0.01218839]
[1649129899962,0.364835,46652.0,46651.0,0.01218839]
[1649129900264,0.53925331,46652.0,46651.0,0.01218839]
[1649129900410,0.21721831,46652.0,46651.0,0.01218839]
[1649129900510,0.53925331,46652.0,46651.0,0.01218839]
[1649129901151,0.364835,46652.0,46651.0,0.01218839]
[1649129901907,0.0428,46652.0,46651.0,0.01218839]
[1649129902704,0.364835,46652.0,46651.0,0.01218839]
[1649129903006,0.322035,46652.0,46651.0,0.01218839]
[1649129903107,0.49656147,46652.0,46651.0,0.01218839]
[1649129909959,0.322035,46652.0,46651.0,0.01218839]
[1649129910259,0.2275639,46648.0,46646.0,0.002]
[1649129911914,0.2275639,46648.0,46646.0,0.109165]
[1649129912011,0.2275639,46648.0,46647.0,0.0428]
[1649129912115,0.2275639,46648.0,46647.0,0.0928]
[1649129912802,0.2275639,46648.0,46647.0,0.199953]
[1649129913953,0.2275639,46648.0,46647.0,0.499953]
[1649129921482,0.2275639,46648.0,46647.0,0.199953]
[1649129925606,0.2275639,46648.0,46647.0,0.157153]
[1649129927113,0.2275639,46648.0,46647.0,0.05]
[1649129927632,0.2275639,46648.0,46647.0,0.31365535]
[1649129928179,0.2275639,46648.0,46647.0,0.05]
[1649129932069,0.2275639,46648.0,46647.0,0.103581]
[1649129932268,0.2275639,46648.0,46647.0,0.36723635]
[1649129933069,0.2275639,46648.0,46647.0,0.103581]
[1649129933368,0.2275639,46648.0,46647.0,0.36723635]
[1649129933721,0.2275639,46648.0,46647.0,0.66723635]
[1649129933871,0.22750119,46648.0,46647.0,0.66723635]
[1649129934218,0.21750119,46648.0,46647.0,0.66723635]
[1649129934620,0.21750119,46648.0,46647.0,0.403581]
[1649129934721,0.21750119,46648.0,46647.0,0.68424553]
[1649129934824,0.21750119,46648.0,46647.0,0.72704553]
[1649129934932,0.21750119,46648.0,46647.0,0.79205464]
[1649129935121,0.21750119,46648.0,46647.0,0.802898]
[1649129935320,0.21750119,46648.0,46647.0,0.90312267]
[1649129935872,0.21750119,46648.0,46647.0,0.64807798]
[1649129936072,0.21750119,46648.0,46647.0,0.63723462]
[1649129936221,0.21750119,46648.0,46647.0,0.53700995]
[1649129936322,0.21750119,46648.0,46647.0,0.84454992]
[1649129936728,0.21750119,46648.0,46647.0,0.47200084]
[1649129936825,0.21750119,46648.0,46647.0,0.146381]
[1649129937480,0.21750119,46648.0,46647.0,0.36000729]
[1649129937582,0.21750119,46648.0,46647.0,0.0428]
[1649129937881,0.21750119,46648.0,46646.0,0.109165]
[1649129938583,0.29434529,46647.0,46646.0,0.109165]
[1649129939024,0.29434529,46647.0,46646.0,0.159165]
[1649129940129,0.29434529,46647.0,46646.0,0.109165]
[1649129940727,0.29434529,46647.0,46646.0,0.002]
[1649129942230,0.004,46645.0,46644.0,0.00056122]
[1649129942973,0.25539165,46645.0,46644.0,0.00056122]
[1649129943077,0.25539165,46645.0,46642.0,0.05]
[1649129943274,0.25539165,46645.0,46642.0,0.05056124]
[1649129943476,0.25539165,46645.0,46643.0,0.05359]
[1649129943577,0.004,46645.0,46643.0,0.05359]
[1649129944525,0.004,46645.0,46642.0,0.05056196]
[1649129945526,0.23174988,46644.0,46642.0,0.05]
[1649129948622,0.17488075,46643.0,46642.0,0.05]
[1649129948725,0.17507707,46643.0,46641.0,0.00056305]
[1649129949126,0.17507707,46643.0,46639.0,0.001]
[1649129949323,0.17507707,46643.0,46640.0,0.00056306]
[1649129950230,0.17513194,46643.0,46640.0,0.00056306]
[1649129950325,0.17514669,46643.0,46639.0,0.001]
[1649129950424,0.17514666,46643.0,46639.0,0.001]
[1649129950524,0.23174988,46644.0,46639.0,0.00156291]
[1649129951025,0.17511654,46643.0,46639.0,0.00156291]
[1649129951225,0.17511651,46643.0,46639.0,0.00156291]
[1649129951327,0.23174988,46644.0,46639.0,0.00156291]
[1649129951476,0.23174988,46644.0,46639.0,0.001]
[1649129951680,0.23174988,46644.0,46639.0,0.0015628]
[1649129952429,0.322035,46643.0,46639.0,0.0015628]
[1649129952531,0.23174988,46644.0,46639.0,0.0015628]
[1649129952630,0.24246988,46644.0,46639.0,0.0015628]
[1649129952733,0.24246988,46644.0,46639.0,0.001]
[1649129952977,0.24246988,46644.0,46639.0,0.0015628]
[1649129953878,0.24246988,46644.0,46639.0,0.001]
[1649129954076,0.24246988,46644.0,46639.0,0.00156282]
[1649129954378,0.17483357,46643.0,46639.0,0.00156282]
[1649129954780,0.23174988,46644.0,46639.0,0.00156282]
[1649129954881,0.24246988,46644.0,46639.0,0.00156282]
[1649129955079,0.24246988,46644.0,46639.0,0.001]
[1649129955287,0.24246988,46644.0,46639.0,0.00156284]
[1649129955583,0.17479754,46643.0,46639.0,0.00156284]
[1649129955786,0.322035,46642.0,46639.0,0.00156284]
[1649129956335,0.322035,46642.0,46639.0,0.001]
[1649129956938,0.975835,46642.0,46639.0,0.001]
[1649129959829,0.322035,46642.0,46639.0,0.001]
[1649129962425,0.975835,46642.0,46639.0,0.001]
[1649129962522,0.322035,46642.0,46639.0,0.001]
[1649129962977,0.975835,46642.0,46639.0,0.001]
[1649129964935,0.01085348,46640.0,46639.0,0.001]
[1649129965031,0.98668848,46640.0,46639.0,0.001]
[1649129965128,1.32948848,46640.0,46639.0,0.00093318]
[1649129970321,0.67568848,46640.0,46639.0,0.00093318]
[1649129972275,0.03483219,46629.0,46608.0,0.5738]
[1649129972418,0.33483219,46629.0,46609.0,1.21576644]
[1649129972522,0.03483219,46629.0,46609.0,1.21576644]
[1649129972620,0.03483219,46629.0,46621.0,0.429]
[1649129972821,0.03483219,46629.0,46621.0,0.71934169]
[1649129973623,0.03483219,46629.0,46624.0,0.348]
[1649129973721,0.26953233,46627.0,46624.0,0.348]
[1649129975126,0.26953233,46627.0,46625.0,0.158221]
[1649129975738,0.03483219,46629.0,46625.0,0.211833]
[1649129976176,0.03483219,46629.0,46625.0,0.48335335]
[1649129976466,0.03483219,46629.0,46625.0,0.211833]
[1649129976966,0.03483219,46629.0,46625.0,0.2124655]
[1649129977269,0.03472766,46629.0,46625.0,0.2124655]
[1649129977920,0.03472766,46629.0,46625.0,0.211833]
[1649129978121,0.03472766,46629.0,46625.0,0.1624655]
[1649129978520,0.3,46628.0,46625.0,0.1088535]
[1649129979172,0.3,46628.0,46625.0,0.108221]
[1649129979371,0.3,46628.0,46625.0,0.10881662]
[1649129980324,0.3,46628.0,46625.0,0.108221]
[1649129980526,0.3,46628.0,46625.0,0.10881662]
[1649129981381,0.3,46628.0,46625.0,0.00159562]
[1649129981485,0.322035,46627.0,46625.0,0.00159562]
[1649129981581,0.622035,46627.0,46625.0,0.001]
[1649129981782,0.622035,46627.0,46625.0,0.00158397]
[1649129982486,0.664835,46627.0,46625.0,0.00158397]
[1649129982786,0.664835,46627.0,46625.0,0.001]
[1649129985374,0.364835,46627.0,46625.0,0.001]
[1649129986725,0.322035,46627.0,46625.0,0.001]
[1649129988670,0.622035,46627.0,46625.0,0.001]
[1649129990168,0.322035,46627.0,46625.0,0.001]
[1649129990268,0.322035,46628.0,46625.0,0.001]
[1649129991373,0.322035,46628.0,46625.0,0.00156061]
[1649129992375,0.322035,46628.0,46625.0,0.001]
[1649129992574,0.322035,46628.0,46625.0,0.00156061]
[1649129992777,0.3,46627.0,46625.0,0.00156061]
[1649129992980,0.622035,46627.0,46625.0,0.00156061]
[1649129993077,0.322035,46627.0,46625.0,0.00156061]
[1649129993530,0.322035,46627.0,46625.0,0.001]
[1649129993629,0.03472766,46629.0,46625.0,0.001]
[1649129993732,0.322035,46628.0,46625.0,0.001]
[1649129994333,0.322035,46627.0,46625.0,0.001]
[1649129994433,0.03472766,46629.0,46625.0,0.001]
[1649129994533,0.322035,46628.0,46625.0,0.001]
[1649129994633,0.322035,46627.0,46625.0,0.001]
[1649129994734,0.03472766,46629.0,46625.0,0.001]
[1649129994924,0.322035,46628.0,46625.0,0.001]
[1649129994978,0.322035,46628.0,46625.0,0.00156057]
[1649129995281,0.322035,46627.0,46625.0,0.00156057]
[1649129995382,0.03472766,46629.0,46625.0,0.00156057]
[1649129995482,0.322035,46628.0,46625.0,0.00156057]
[1649129995582,0.3,46627.0,46625.0,0.00156057]
[1649129995683,0.622035,46627.0,46625.0,0.00156057]
[1649129995981,0.622035,46627.0,46625.0,0.001]
[1649129997936,0.322035,46627.0,46625.0,0.001]
[1649129999313,0.322035,46627.0,46626.0,0.00325299]
[1649130001620,0.322035,46627.0,46626.0,0.001]
[1649130002668,0.03472766,46629.0,46621.0,0.15823167]
[1649130003567,0.03472766,46629.0,46624.0,0.053617]
[1649130003668,0.322035,46628.0,46624.0,0.053617]
[1649130003768,0.332755,46628.0,46624.0,0.053617]
[1649130003868,0.322035,46626.0,46624.0,0.053617]
[1649130003973,0.322035,46627.0,46624.0,0.053617]
[1649130004070,0.01072,46626.0,46624.0,0.053617]
[1649130004170,0.01072,46628.0,46624.0,0.053617]
[1649130004271,0.03472766,46629.0,46624.0,0.053617]
[1649130004369,0.322035,46628.0,46624.0,0.053617]
[1649130004474,0.3,46627.0,46624.0,0.053617]
[1649130004572,0.322035,46626.0,46624.0,0.053617]
[1649130004823,0.3,46627.0,46624.0,0.053617]
[1649130004919,0.03472766,46629.0,46624.0,0.053617]
[1649130004920,0.01072,46626.0,46624.0,0.053617]
[1649130005021,0.322035,46627.0,46624.0,0.053617]
[1649130005121,0.01072,46626.0,46624.0,0.053617]
[1649130005220,0.322035,46627.0,46624.0,0.053617]
[1649130005320,0.01072,46626.0,46624.0,0.053617]
[1649130005421,0.01072,46628.0,46624.0,0.053617]
[1649130005521,0.322035,46628.0,46624.0,0.053617]
[1649130005623,0.322035,46627.0,46624.0,0.053617]
[1649130005722,0.03472766,46629.0,46624.0,0.053617]
[1649130005822,0.322035,46628.0,46624.0,0.053617]
[1649130006022,0.322035,46627.0,46624.0,0.053617]
[1649130006178,0.322035,46628.0,46624.0,0.053617]
[1649130006326,0.01072,46627.0,46624.0,0.053617]